fUSD/lending_fUSD_20240501
["ID","MTS","AMOUNT","RATE_DAILY","PERIOD"]
[325141982,1714537880515,-493.99667007,0.00012602,2]
[325141983,1714537880528,-23.27332993,0.00012602,2]
[325141984,1714537880537,-500.0,0.00012602,2]
[325141985,1714537880547,-79.06667007,0.00012602,2]
[325141986,1714537936516,152.29246533,6.154e-05,2]
[325141987,1714537937570,152.29246533,6.753e-05,2]
[325141988,1714537938398,152.29246533,9.358e-05,2]
[325141989,1714537942035,151.50674154,8.408e-05,2]
[325141990,1714537942557,151.50674154,8.721e-05,2]
[325141991,1714537943608,151.50674154,8.973e-05,2]
[325141992,1714537946639,150.87670354,6.053e-05,2]
[325141993,1714537947189,150.87670354,6.557e-05,2]
[325141994,1714537947520,153.33995172,9.584e-05,2]
[325141995,1714537947730,150.87670354,9.785e-05,2]
[325141996,1714537947763,154.20889233,7.163e-05,2]
[325141997,1714537948565,154.20889233,9.281e-05,2]
[325141999,1714537958468,153.34,9.352e-05,2]
[325142000,1714537996926,1795.4825,9.942e-05,2]
[325142001,1714538098253,65732.72211637,9.942e-05,2]
[325142002,1714538098280,1365.48857165,9.942e-05,2]
[325142003,1714538098308,1510.74516342,9.942e-05,2]
[325142004,1714538098333,131557.69279888,9.942e-05,2]
[325142005,1714538100516,336.05621342,9.942e-05,2]
[325142006,1714538111566,16887.6307797,9.942e-05,2]
[325142011,1714538317103,408.89668427,0.0001,2]
[325142022,1714538433872,153.34,8.385e-05,2]
[325142048,1714538799594,5835.82,8.385e-05,2]
[325142055,1714538923979,153.34,8.219e-05,2]
[325142056,1714538926825,164.52,8.219e-05,2]
[325142057,1714538933003,553.31,9.964e-05,2]
[325142083,1714539032447,-427.51019987,0.00010017,2]
[325142084,1714539032458,-155.0,0.00010018,2]
[325142085,1714539032467,-172.01,0.00010021,2]
[325142086,1714539032476,-5245.47980013,0.0001019,2]
[325142087,1714539032488,-378.96972125,0.0001019,2]
[325142088,1714539032500,-275.12316609,0.0001019,2]
[325142089,1714539032510,-706.97,0.00010191,2]
[325142090,1714539032520,-1141.67,0.00010299,2]
[325142091,1714539032529,-150.0,0.00010312,2]
[325142092,1714539032539,-23900.0,0.00010313,2]
[325142093,1714539032548,-849.77085808,0.00010313,7]
[325142094,1714539032576,-609.67999998,0.00010313,7]
[325142095,1714539032607,-522.3297664,0.00010313,7]
[325142130,1714539038372,-4125.76288333,0.00010313,7]
[325142138,1714539038516,-3119.56947977,0.00010313,7]
[325142139,1714539038526,-273.38,0.00010422,2]
[325142140,1714539038535,-253.67136739,0.00010639,2]
[325142141,1714539038545,-751.02,0.00010729,2]
[325142142,1714539038554,-150.99,0.00010729,2]
[325142143,1714539038563,-562.99,0.00010729,2]
[325142144,1714539038572,-662.8682,0.00010758,2]
[325142145,1714539038581,-512.9575,0.00010758,2]
[325142146,1714539038591,-173.7102,0.00010758,2]
[325142147,1714539038600,-1605.702,0.00010758,2]
[325142148,1714539038609,-499.99,0.00010758,2]
[325142149,1714539038618,-2014.85,0.00010758,2]
[325142150,1714539038627,-1000.0,0.00010758,2]
[325142151,1714539038637,-300.0,0.000108,3]
[325142152,1714539038646,-360.84870757,0.00010856,2]
[325142153,1714539038656,-239.53655205,0.00010856,2]
[325142154,1714539038666,-1063.1821052,0.00010856,2]
[325142155,1714539038675,-155.61985528,0.00010856,2]
[325142156,1714539038685,-155.07397537,0.00010857,2]
[325142157,1714539038694,-167.25516409,0.00010858,2]
[325142158,1714539038703,-212.03793887,0.00010858,2]
[325142159,1714539038712,-100000.0,0.00010858,2]
[325142160,1714539038721,-500.0,0.00010858,2]
[325142161,1714539038730,-40077.0838,0.00010858,2]
[325142162,1714539038740,-1211.7634,0.00010858,2]
[325142163,1714539038749,-158095.2116,0.00010858,2]
[325142164,1714539038759,-1000.0,0.00010858,2]
[325142165,1714539038768,-600.0,0.000109,3]
[325142166,1714539038777,-203.97616968,0.00010956,2]
[325142167,1714539038786,-155.07516162,0.00010956,2]
[325142168,1714539038795,-417.45617429,0.00010956,2]
[325142169,1714539038805,-210.7053112,0.00010956,2]
[325142170,1714539038814,-709.46994168,0.00010956,2]
[325142171,1714539038823,-155.41196255,0.00010956,2]
[325142172,1714539038832,-898.47487725,0.00010956,2]
[325142173,1714539038842,-414.28119384,0.00010956,2]
[325142174,1714539038852,-297.73565229,0.00010956,2]
[325142175,1714539038862,-489.46795219,0.00010956,2]
[325142176,1714539038871,-529.83912498,0.00010956,2]
[325142177,1714539038881,-155.26640392,0.00010956,2]
[325142179,1714539038891,-155.21536814,0.00010956,2]
[325142181,1714539038901,-1130.38332252,0.00010956,2]
[325142183,1714539038910,-4423.24827159,0.00010956,2]
[325142185,1714539038920,-221.14821884,0.00010956,2]
[325142187,1714539038929,-194.76294358,0.00010956,2]
[325142189,1714539038938,-466.92769895,0.00010956,2]
[325142191,1714539038947,-767.8903537,0.00010956,2]
[325142192,1714539038956,-155.19473648,0.00010956,2]
[325142193,1714539038965,-4174.37248907,0.00010956,2]
[325142194,1714539038975,-167.7537718,0.00010956,2]
[325142195,1714539038983,-237.05608223,0.00010956,2]
[325142197,1714539038993,-150.99,0.00010956,2]
[325142199,1714539039002,-2259.13022236,0.00010957,2]
[325142200,1714539039012,-2250.89391064,0.00010957,2]
[325142202,1714539039021,-501.46311302,0.00010958,2]
[325142203,1714539039031,-500.0,0.00010958,2]
[325142204,1714539039040,-520.28608677,0.00010958,2]
[325142206,1714539039050,-500.0,0.00010958,2]
[325142208,1714539039059,-263.21842109,0.00010958,2]
[325142209,1714539039068,-500.0,0.00010958,2]
[325142210,1714539039078,-502.045153,0.00010958,2]
[325142211,1714539039087,-500.0,0.00010958,2]
[325142213,1714539039096,-500.0,0.00010958,2]
[325142215,1714539039106,-500.50392992,0.00010958,2]
[325142217,1714539039115,-500.0,0.00010958,2]
[325142219,1714539039125,-500.0,0.00010958,2]
[325142221,1714539039134,-500.0,0.00010958,2]
[325142223,1714539039143,-498.24434424,0.00010958,2]
[325142225,1714539039157,-500.0,0.00010958,2]
[325142226,1714539039167,-500.0,0.00010958,2]
[325142227,1714539039176,-501.21854275,0.00010958,2]
[325142228,1714539039185,-500.0,0.00010958,2]
[325142229,1714539039195,-500.0,0.00010958,2]
[325142230,1714539039204,-500.0,0.00010958,2]
[325142231,1714539039213,-500.0,0.00010958,2]
[325142232,1714539039222,-500.0,0.00010958,2]
[325142233,1714539039232,-500.0,0.00010958,2]
[325142234,1714539039242,-500.0,0.00010958,2]
[325142235,1714539039251,-397.08079639,0.00010958,2]
[325142236,1714539039260,-502.71399798,0.00010958,2]
[325142237,1714539039269,-500.0,0.00010958,2]
[325142238,1714539039278,-500.0,0.00010958,2]
[325142239,1714539039287,-500.0,0.00010958,2]
[325142240,1714539039296,-501.50292457,0.00010958,2]
[325142241,1714539039306,-500.0,0.00010958,2]
[325142242,1714539039314,-500.0,0.00010958,2]
[325142243,1714539039324,-500.0,0.00010958,2]
[325142244,1714539039333,-500.0,0.00010958,2]
[325142245,1714539039342,-500.0,0.00010958,2]
[325142246,1714539039352,-501.28065916,0.00010958,2]
[325142247,1714539039362,-500.0,0.00010958,2]
[325142248,1714539039372,-500.0,0.00010958,2]
[325142249,1714539039381,-501.50153335,0.00010958,2]
[325142250,1714539039390,-500.0,0.00010958,2]
[325142251,1714539039399,-500.31198752,0.00010958,2]
[325142252,1714539039408,-500.0,0.00010958,2]
[325142253,1714539039417,-500.0,0.00010958,2]
[325142254,1714539039426,-230.26226154,0.00010958,2]
[325142255,1714539039436,-500.0,0.00010958,2]
[325142256,1714539039446,-500.0,0.00010958,2]
[325142257,1714539039456,-500.0,0.00010958,2]
[325142258,1714539039466,-500.66277041,0.00010958,2]
[325142259,1714539039475,-500.0,0.00010958,2]
[325142260,1714539039485,-500.0,0.00010958,2]
[325142261,1714539039495,-500.0,0.00010958,2]
[325142262,1714539039668,-500.0,0.00010958,2]
[325142263,1714539039678,-500.0,0.00010958,2]
[325142264,1714539039687,-500.0,0.00010958,2]
[325142265,1714539039697,-500.0,0.00010958,2]
[325142266,1714539039706,-500.0,0.00010958,2]
[325142267,1714539039715,-500.22012071,0.00010958,2]
[325142268,1714539039724,-500.0,0.00010958,2]
[325142269,1714539039734,-475.77337884,0.00010958,2]
[325142270,1714539039743,-518.20845053,0.00010958,2]
[325142271,1714539039752,-500.0,0.00010958,2]
[325142272,1714539039763,-500.0,0.00010958,2]
[325142273,1714539039773,-222.86895541,0.00010958,2]
[325142274,1714539039782,-500.0,0.00010958,2]
[325142275,1714539039791,-500.0,0.00010958,2]
[325142276,1714539039800,-258.5762233,0.00010958,2]
[325142277,1714539039809,-500.0,0.00010958,2]
[325142278,1714539039819,-500.0,0.00010958,2]
[325142279,1714539039828,-501.15462232,0.00010958,2]
[325142280,1714539039837,-501.36502476,0.00010958,2]
[325142281,1714539039846,-500.0,0.00010958,2]
[325142282,1714539039856,-501.6254176,0.00010958,2]
[325142283,1714539039866,-500.0,0.00010958,2]
[325142284,1714539039875,-500.0,0.00010958,2]
[325142285,1714539039885,-500.0,0.00010958,2]
[325142286,1714539039894,-500.0,0.00010958,2]
[325142287,1714539039903,-500.75583462,0.00010958,2]
[325142288,1714539039912,-500.0,0.00010958,2]
[325142289,1714539039922,-503.87055532,0.00010958,2]
[325142290,1714539039931,-501.33848886,0.00010958,2]
[325142291,1714539039940,-500.0,0.00010958,2]
[325142292,1714539039950,-407.416989,0.00010958,2]
[325142293,1714539039959,-500.62427866,0.00010958,2]
[325142294,1714539039968,-505.82366473,0.00010958,2]
[325142295,1714539039977,-500.0,0.00010958,2]
[325142296,1714539039986,-503.75156806,0.00010958,2]
[325142297,1714539039996,-502.80581883,0.00010958,2]
[325142298,1714539040005,-500.0,0.00010958,2]
[325142299,1714539040015,-500.0,0.00010958,2]
[325142300,1714539040023,-500.0,0.00010958,2]
[325142301,1714539040033,-595.30334111,0.00010958,2]
[325142302,1714539040042,-500.0,0.00010958,2]
[325142303,1714539040051,-500.0,0.00010958,2]
[325142304,1714539040061,-500.0,0.00010958,2]
[325142305,1714539040070,-500.0,0.00010958,2]
[325142306,1714539040080,-547.31739756,0.00010958,2]
[325142307,1714539040089,-500.0,0.00010958,2]
[325142308,1714539040098,-500.0,0.00010958,2]
[325142309,1714539040108,-502.73278949,0.00010958,2]
[325142311,1714539040117,-500.52210125,0.00010958,2]
[325142313,1714539040126,-500.0,0.00010958,2]
[325142315,1714539040136,-500.0,0.00010958,2]
[325142316,1714539040145,-500.0,0.00010958,2]
[325142318,1714539040154,-500.0,0.00010958,2]
[325142319,1714539040168,-500.0,0.00010958,2]
[325142320,1714539040178,-349.94143058,0.00010958,2]
[325142322,1714539040188,-502.42820417,0.00010958,2]
[325142324,1714539040198,-500.0,0.00010958,2]
[325142326,1714539040209,-500.0,0.00010958,2]
[325142328,1714539040219,-500.54658361,0.00010958,2]
[325142330,1714539040228,-500.0,0.00010958,2]
[325142332,1714539040240,-500.95335306,0.00010958,2]
[325142334,1714539040249,-500.0,0.00010958,2]
[325142336,1714539040259,-500.0,0.00010958,2]
[325142338,1714539040267,-518.84388553,0.00010958,2]
[325142340,1714539040276,-500.0,0.00010958,2]
[325142342,1714539040286,-500.0,0.00010958,2]
[325142345,1714539040295,-500.96556469,0.00010958,2]
[325142348,1714539040304,-500.0,0.00010958,2]
[325142350,1714539040313,-500.0,0.00010958,2]
[325142351,1714539040322,-500.0,0.00010958,2]
[325142352,1714539040331,-501.10489773,0.00010958,2]
[325142353,1714539040340,-500.0,0.00010958,2]
[325142354,1714539040349,-500.0,0.00010958,2]
[325142355,1714539040358,-500.0,0.00010958,2]
[325142356,1714539040367,-509.06418489,0.00010958,2]
[325142357,1714539040376,-500.0,0.00010958,2]
[325142358,1714539040385,-500.0,0.00010958,2]
[325142359,1714539040394,-500.0,0.00010958,2]
[325142360,1714539040403,-500.0,0.00010958,2]
[325142362,1714539040412,-500.0,0.00010958,2]
[325142363,1714539040421,-500.0,0.00010958,2]
[325142364,1714539040431,-168.15221057,0.00010958,2]
[325142365,1714539040440,-500.0,0.00010958,2]
[325142366,1714539040450,-643.90243411,0.00010958,2]
[325142367,1714539040459,-500.0,0.00010958,2]
[325142368,1714539040468,-503.48592612,0.00010958,2]
[325142369,1714539040477,-500.0,0.00010958,2]
[325142370,1714539040486,-500.0,0.00010958,2]
[325142371,1714539040495,-500.52516591,0.00010958,2]
[325142372,1714539040505,-500.0,0.00010958,2]
[325142373,1714539040514,-500.0,0.00010958,2]
[325142374,1714539040523,-500.0,0.00010958,2]
[325142375,1714539040532,-524.22350418,0.00010958,2]
[325142376,1714539040541,-500.0,0.00010958,2]
[325142377,1714539040550,-500.0,0.00010958,2]
[325142378,1714539040562,-500.0,0.00010958,2]
[325142379,1714539040571,-500.0,0.00010958,2]
[325142380,1714539040580,-500.0,0.00010958,2]
[325142381,1714539040590,-500.0,0.00010958,2]
[325142382,1714539040599,-500.0,0.00010958,2]
[325142383,1714539040610,-500.0,0.00010958,2]
[325142384,1714539040619,-500.0,0.00010958,2]
[325142385,1714539040628,-502.77078981,0.00010958,2]
[325142386,1714539040637,-500.0,0.00010958,2]
[325142387,1714539040647,-500.0,0.00010958,2]
[325142388,1714539040656,-500.0,0.00010958,2]
[325142389,1714539040665,-500.0,0.00010958,2]
[325142390,1714539040675,-500.0,0.00010958,2]
[325142391,1714539040684,-501.27493544,0.00010958,2]
[325142392,1714539040693,-500.69555017,0.00010958,2]
[325142393,1714539040702,-515.12134855,0.00010958,2]
[325142394,1714539040713,-500.0,0.00010958,2]
[325142395,1714539040722,-500.0,0.00010958,2]
[325142396,1714539040731,-500.0,0.00010958,2]
[325142397,1714539040740,-501.04573782,0.00010958,2]
[325142398,1714539040750,-501.05149476,0.00010958,2]
[325142399,1714539040759,-500.0,0.00010958,2]
[325142400,1714539040768,-237.2599956,0.00010958,2]
[325142401,1714539040777,-200.44814106,0.00010958,2]
[325142402,1714539040787,-500.0,0.00010958,2]
[325142403,1714539040796,-500.0,0.00010958,2]
[325142404,1714539040805,-501.6964297,0.00010958,2]
[325142405,1714539040815,-500.0,0.00010958,2]
[325142406,1714539040824,-178.3746827,0.00010958,2]
[325142407,1714539040834,-500.0,0.00010958,2]
[325142408,1714539040844,-500.0,0.00010958,2]
[325142409,1714539040853,-503.67070917,0.00010958,2]
[325142410,1714539040866,-500.0,0.00010958,2]
[325142411,1714539040875,-500.0,0.00010958,2]
[325142412,1714539040884,-500.45657931,0.00010958,2]
[325142413,1714539040893,-500.0,0.00010958,2]
[325142414,1714539040902,-500.0,0.00010958,2]
[325142415,1714539040911,-500.0,0.00010958,2]
[325142416,1714539040920,-500.0,0.00010958,2]
[325142418,1714539040930,-500.0,0.00010958,2]
[325142420,1714539040939,-500.0,0.00010958,2]
[325142421,1714539040948,-500.0,0.00010958,2]
[325142422,1714539040958,-500.0,0.00010958,2]
[325142423,1714539040968,-500.0,0.00010958,2]
[325142424,1714539040977,-306.34959705,0.00010958,2]
[325142425,1714539040987,-500.0,0.00010958,2]
[325142426,1714539040996,-502.87108122,0.00010958,2]
[325142427,1714539041006,-500.37686493,0.00010958,2]
[325142428,1714539041016,-500.0,0.00010958,2]
[325142429,1714539041026,-500.0,0.00010958,2]
[325142430,1714539041035,-500.0,0.00010958,2]
[325142431,1714539041044,-500.0,0.00010958,2]
[325142432,1714539041054,-500.20751945,0.00010958,2]
[325142433,1714539041063,-500.0,0.00010958,2]
[325142434,1714539041073,-500.0,0.00010958,2]
[325142435,1714539041082,-500.0,0.00010958,2]
[325142436,1714539041091,-500.34792185,0.00010958,2]
[325142437,1714539041101,-500.0,0.00010958,2]
[325142438,1714539041113,-500.0,0.00010958,2]
[325142439,1714539041122,-500.0,0.00010958,2]
[325142440,1714539041132,-500.0,0.00010958,2]
[325142441,1714539041141,-500.0,0.00010958,2]
[325142442,1714539041152,-500.0,0.00010958,2]
[325142443,1714539041165,-500.0,0.00010958,2]
[325142444,1714539041174,-500.0,0.00010958,2]
[325142445,1714539041183,-614.03,0.00010958,2]
[325142446,1714539041193,-500.0,0.00010958,2]
[325142447,1714539041203,-501.97659664,0.00010958,2]
[325142448,1714539041212,-502.41066344,0.00010958,2]
[325142449,1714539041222,-500.0,0.00010958,2]
[325142450,1714539041231,-500.0,0.00010958,2]
[325142451,1714539041241,-500.0,0.00010958,2]
[325142452,1714539041251,-500.0,0.00010958,2]
[325142453,1714539041260,-500.0,0.00010958,2]
[325142454,1714539041270,-500.0,0.00010958,2]
[325142455,1714539041279,-500.0,0.00010958,2]
[325142456,1714539041288,-500.0,0.00010958,2]
[325142457,1714539041297,-500.0,0.00010958,2]
[325142458,1714539041307,-500.0,0.00010958,2]
[325142459,1714539041317,-188.82685571,0.00010958,2]
[325142460,1714539041326,-500.0,0.00010958,2]
[325142461,1714539041337,-155.60492978,0.00010958,2]
[325142462,1714539041346,-514.97,0.00010958,2]
[325142463,1714539041356,-500.0,0.00010958,2]
[325142464,1714539041367,-500.0,0.00010958,2]
[325142465,1714539041376,-500.0,0.00010958,2]
[325142466,1714539041385,-500.0,0.00010958,2]
[325142467,1714539041395,-547.7494338,0.00010958,2]
[325142468,1714539041404,-500.0,0.00010958,2]
[325142469,1714539041414,-500.0,0.00010958,2]
[325142470,1714539041423,-621.14543235,0.00010958,2]
[325142471,1714539041433,-500.0,0.00010958,2]
[325142472,1714539041443,-500.0,0.00010958,2]
[325142473,1714539041453,-500.0,0.00010958,2]
[325142474,1714539041462,-500.0,0.00010958,2]
[325142475,1714539041472,-500.0,0.00010958,2]
[325142476,1714539041481,-500.0,0.00010958,2]
[325142477,1714539041491,-500.0,0.00010958,2]
[325142478,1714539041500,-500.0,0.00010958,2]
[325142479,1714539041510,-500.0,0.00010958,2]
[325142480,1714539041519,-500.36609454,0.00010958,2]
[325142481,1714539041528,-500.0,0.00010958,2]
[325142482,1714539041538,-500.34249918,0.00010958,2]
[325142483,1714539041549,-500.0,0.00010958,2]
[325142484,1714539041559,-500.0,0.00010958,2]
[325142485,1714539041568,-500.0,0.00010958,2]
[325142486,1714539041577,-501.81105778,0.00010958,2]
[325142487,1714539041586,-500.0,0.00010958,2]
[325142488,1714539041595,-500.0,0.00010958,2]
[325142489,1714539041605,-500.0,0.00010958,2]
[325142490,1714539041615,-500.0,0.00010958,2]
[325142491,1714539041623,-500.0,0.00010958,2]
[325142492,1714539041633,-500.0,0.00010958,2]
[325142493,1714539041642,-500.0,0.00010958,2]
[325142494,1714539041652,-500.0,0.00010958,2]
[325142495,1714539041661,-500.0,0.00010958,2]
[325142496,1714539041670,-500.0,0.00010958,2]
[325142497,1714539041680,-500.0,0.00010958,2]
[325142498,1714539041689,-167.2192648,0.00010958,2]
[325142499,1714539041699,-500.0,0.00010958,2]
[325142500,1714539041708,-628.26,0.00010958,2]
[325142501,1714539041718,-500.0,0.00010958,2]
[325142502,1714539041727,-500.0,0.00010958,2]
[325142503,1714539041737,-500.0,0.00010958,2]
[325142504,1714539041747,-500.0,0.00010958,2]
[325142505,1714539041756,-500.0,0.00010958,2]
[325142506,1714539041765,-368.20391238,0.00010958,2]
[325142507,1714539041775,-500.0,0.00010958,2]
[325142508,1714539041785,-500.0,0.00010958,2]
[325142509,1714539041794,-502.03783816,0.00010958,2]
[325142510,1714539041803,-500.0,0.00010958,2]
[325142511,1714539041813,-500.0,0.00010958,2]
[325142512,1714539041822,-500.0,0.00010958,2]
[325142513,1714539041832,-500.0,0.00010958,2]
[325142514,1714539041842,-500.0,0.00010958,2]
[325142515,1714539041851,-500.0,0.00010958,2]
[325142516,1714539041862,-500.0,0.00010958,2]
[325142517,1714539041871,-500.0,0.00010958,2]
[325142518,1714539041881,-1750.63,0.00010958,2]
[325142519,1714539041890,-500.0,0.00010958,2]
[325142520,1714539041899,-500.0,0.00010958,2]
[325142521,1714539041909,-500.0,0.00010958,2]
[325142522,1714539041920,-502.6609573,0.00010958,2]
[325142523,1714539041930,-500.0,0.00010958,2]
[325142524,1714539041939,-500.0,0.00010958,2]
[325142525,1714539041949,-500.0,0.00010958,2]
[325142526,1714539041958,-500.0,0.00010958,2]
[325142527,1714539041967,-500.0,0.00010958,2]
[325142528,1714539041977,-500.0,0.00010958,2]
[325142529,1714539041986,-500.0,0.00010958,2]
[325142530,1714539041996,-500.0,0.00010958,2]
[325142531,1714539042005,-500.0,0.00010958,2]
[325142532,1714539042015,-500.0,0.00010958,2]
[325142533,1714539042024,-500.0,0.00010958,2]
[325142534,1714539042034,-500.0,0.00010958,2]
[325142535,1714539042043,-500.0,0.00010958,2]
[325142536,1714539042051,-500.0,0.00010958,2]
[325142537,1714539042060,-500.0,0.00010958,2]
[325142538,1714539042069,-500.0,0.00010958,2]
[325142539,1714539042079,-500.0,0.00010958,2]
[325142540,1714539042087,-500.0,0.00010958,2]
[325142541,1714539042096,-500.0,0.00010958,2]
[325142542,1714539042105,-500.0,0.00010958,2]
[325142543,1714539042115,-500.0,0.00010958,2]
[325142544,1714539042124,-500.0,0.00010958,2]
[325142545,1714539042133,-500.0,0.00010958,2]
[325142546,1714539042142,-500.0,0.00010958,2]
[325142547,1714539042153,-500.0,0.00010958,2]
[325142548,1714539042165,-500.0,0.00010958,2]
[325142549,1714539042175,-500.0,0.00010958,2]
[325142550,1714539042184,-500.0,0.00010958,2]
[325142551,1714539042194,-500.0,0.00010958,2]
[325142552,1714539042203,-500.0,0.00010958,2]
[325142553,1714539042212,-500.0,0.00010958,2]
[325142554,1714539042221,-500.0,0.00010958,2]
[325142555,1714539042232,-500.0,0.00010958,2]
[325142556,1714539042242,-500.0,0.00010958,2]
[325142557,1714539042254,-500.0,0.00010958,2]
[325142558,1714539042263,-500.0,0.00010958,2]
[325142559,1714539042273,-500.0,0.00010958,2]
[325142560,1714539042282,-500.0,0.00010958,2]
[325142561,1714539042292,-500.0,0.00010958,2]
[325142562,1714539042301,-500.0,0.00010958,2]
[325142563,1714539042311,-500.0,0.00010958,2]
[325142564,1714539042321,-500.0,0.00010958,2]
[325142565,1714539042331,-500.0,0.00010958,2]
[325142566,1714539042341,-500.0,0.00010958,2]
[325142567,1714539042472,-500.0,0.00010958,2]
[325142568,1714539042499,-500.0,0.00010958,2]
[325142569,1714539042509,-500.0,0.00010958,2]
[325142570,1714539042518,-503.12994512,0.00010958,2]
[325142571,1714539042527,-500.0,0.00010958,2]
[325142572,1714539042536,-500.0,0.00010958,2]
[325142573,1714539042545,-500.0,0.00010958,2]
[325142574,1714539042554,-500.0,0.00010958,2]
[325142575,1714539042564,-501.05034907,0.00010958,2]
[325142576,1714539042573,-500.0,0.00010958,2]
[325142577,1714539042583,-500.0,0.00010958,2]
[325142578,1714539042593,-500.0,0.00010958,2]
[325142579,1714539042604,-500.0,0.00010958,2]
[325142580,1714539042614,-503.34843756,0.00010958,2]
[325142581,1714539042623,-500.0,0.00010958,2]
[325142582,1714539042632,-500.0,0.00010958,2]
[325142583,1714539042641,-500.0,0.00010958,2]
[325142584,1714539042651,-739.46,0.00010958,2]
[325142585,1714539042661,-502.11182167,0.00010958,2]
[325142586,1714539042670,-500.0,0.00010958,2]
[325142587,1714539042680,-500.0,0.00010958,2]
[325142588,1714539042689,-500.0,0.00010958,2]
[325142589,1714539042698,-806.49,0.00010958,2]
[325142590,1714539042708,-500.0,0.00010958,2]
[325142591,1714539042718,-500.0,0.00010958,2]
[325142592,1714539042727,-500.33258395,0.00010958,2]
[325142593,1714539042737,-500.0,0.00010958,2]
[325142594,1714539042746,-500.0,0.00010958,2]
[325142595,1714539042757,-929.25,0.00010958,2]
[325142596,1714539042766,-505.69,0.00010958,2]
[325142597,1714539042775,-500.0,0.00010958,2]
[325142598,1714539042786,-500.0,0.00010958,2]
[325142599,1714539042795,-500.0,0.00010958,2]
[325142600,1714539042805,-500.0,0.00010958,2]
[325142601,1714539042814,-500.0,0.00010958,2]
[325142602,1714539042824,-500.0,0.00010958,2]
[325142603,1714539042834,-500.0,0.00010958,2]
[325142604,1714539042843,-528.60373708,0.00010958,2]
[325142605,1714539042853,-500.0,0.00010958,2]
[325142606,1714539042863,-500.0,0.00010958,2]
[325142607,1714539042872,-500.0,0.00010958,2]
[325142608,1714539042882,-500.0,0.00010958,2]
[325142609,1714539042891,-500.0,0.00010958,2]
[325142610,1714539042900,-500.0,0.00010958,2]
[325142611,1714539042910,-503.81594359,0.00010958,2]
[325142612,1714539042919,-500.0,0.00010958,2]
[325142613,1714539042928,-789.35,0.00010958,2]
[325142614,1714539042938,-500.0,0.00010958,2]
[325142615,1714539042948,-500.0,0.00010958,2]
[325142616,1714539042957,-500.0,0.00010958,2]
[325142617,1714539042966,-500.0,0.00010958,2]
[325142618,1714539042975,-500.0,0.00010958,2]
[325142619,1714539042985,-500.0,0.00010958,2]
[325142620,1714539042994,-500.0,0.00010958,2]
[325142621,1714539043004,-500.0,0.00010958,2]
[325142622,1714539043017,-500.0,0.00010958,2]
[325142623,1714539043026,-500.0,0.00010958,2]
[325142624,1714539043035,-500.0,0.00010958,2]
[325142625,1714539043045,-500.0,0.00010958,2]
[325142627,1714539043054,-500.0,0.00010958,2]
[325142629,1714539043063,-500.0,0.00010958,2]
[325142631,1714539043073,-500.0,0.00010958,2]
[325142632,1714539043082,-500.0,0.00010958,2]
[325142633,1714539043091,-500.0,0.00010958,2]
[325142634,1714539043100,-500.0,0.00010958,2]
[325142635,1714539043109,-500.0,0.00010958,2]
[325142636,1714539043118,-500.0,0.00010958,2]
[325142637,1714539043127,-627.06,0.00010958,2]
[325142638,1714539043136,-500.0,0.00010958,2]